{"text_format":"3","workbook":"xlsx","n_sheets":2,"sheets":["Начало","Сватбен бюджет"],"read":"whole","date_system":"1900"}

{"sheet":"Начало","index":0,"n_rows":7,"n_cols":2,"rows_kept":7}
[null,"ЗА ТОЗИ ШАБЛОН"]
[null,"Използвайте този шаблон, за да регистрирате действителните си разходи за сватба по различни елементи и да ги проследявате спрямо бюджетирани суми."]
[null,"Въведете разходите за облекло, декорации, подаръци, цветя, музика, фотография, приемане, бланки, транспорт и различни предмети в съответните таблици."]
[null,"Общите прогнозни и общите действителни разходи се изчисляват автоматично."]
[null,"Забележка: "]
[null,"Предоставени са допълнителни инструкции в колона A в работен лист на БЮДЖЕТ ЗА СВАТБА. Този текст е скрит нарочно. За да премахнете текста, изберете колона А, след което изберете DELETE. За да покажете текст, изберете колона A, след което променете цвета на шрифта."]
[null,"За да научите повече за таблиците, натиснете SHIFT и след това F10 в таблица, изберете опцията ТАБЛИЦА, след което изберете АЛТЕРНАТИВЕН ТЕКСТ."]

{"sheet":"Сватбен бюджет","index":1,"n_rows":93,"n_cols":4,"rows_kept":93,"merged":[[0,1,0,3],[2,1,2,3],[6,1,6,3],[15,1,15,3],[25,1,25,3],[34,1,34,3],[43,1,43,3],[50,1,50,3],[59,1,59,3],[68,1,68,3],[77,1,77,3],[85,1,85,3]]}
[null,"СВАТБЕН БЮДЖЕТ"]
[]
[null,"ОБЩО РАЗХОДИ "]
[null,"Елемент ","Очаквано","Действителни"]
[null,"Общо разходи ",{"$f":"SUM(Облекло[[#Totals],[Очаквани]],Украса[[#Totals],[Очаквани]],Подаръци[[#Totals],[Очаквани]],Цветя[[#Totals],[Очаквани]],Музика[[#Totals],[Очаквани]],Снимки[[#Totals],[Очаквани]],Тържество_в_ресторанта[[#Totals],[Очаквани]],БланкаИпечатане[[#Totals],[Очаквани]],Транспорт[[#Totals],[Очаквани]],ДругиРазходи[[#Totals],[Очаквани]])","v":0},{"$f":"SUM(Облекло[[#Totals],[Действителни]],Украса[[#Totals],[Действителни]],Подаръци[[#Totals],[Действителни]],Цветя[[#Totals],[Действителни]],Музика[[#Totals],[Действителни]],Снимки[[#Totals],[Действителни]],Тържество_в_ресторанта[[#Totals],[Действителни]],БланкаИпечатане[[#Totals],[Действителни]],Транспорт[[#Totals],[Действителни]],ДругиРазходи[[#Totals],[Действително]],)","v":0}]
[]
[null,"ОБЛЕКЛО"]
[null,"Елемент ","Очаквани","Действителни"]
[null,"Годежен пръстен"]
[null,"Венчални халки"]
[null,"Сватбена рокля"]
[null,"Воал/украса за косата"]
[null,"Други:"]
[null,"Общо за облекло",{"$f":"SUBTOTAL(109,Облекло[Очаквани])","v":0},{"$f":"SUBTOTAL(109,Облекло[Действителни])","v":0}]
[]
[null,"УКРАСИ"]
[null,"Елемент ","Очаквани","Действителни"]
[null,"Ленти за скамейките в църквата/други места за сядане"]
[null,"Украса в средата на масата (освен цветята)"]
[null,"Свещи"]
[null,"Осветление"]
[null,"Балони"]
[null,"Други:"]
[null,"Общо за украса",{"$f":"SUBTOTAL(109,Украса[Очаквани])","v":0},{"$f":"SUBTOTAL(109,Украса[Действителни])","v":0}]
[]
[null,"ПОДАРЪЦИ"]
[null,"Елемент ","Очаквани","Действителни"]
[null,"Шаферки"]
[null,"Младоженци"]
[null,"Родители"]
[null,"Църковни четци/други участници"]
[null,"Други:"]
[null,"Общо за подаръци",{"$f":"SUBTOTAL(109,Подаръци[Очаквани])","v":0},{"$f":"SUBTOTAL(109,Подаръци[Действителни])","v":0}]
[]
[null,"ЦВЕТЯ"]
[null,"Елемент ","Очаквани","Действителни"]
[null,"Букети"]
[null,"Бутониери"]
[null,"Букетчета за ръка"]
[null,"Церемония"]
[null,"Други:"]
[null,"Общо за цветя",{"$f":"SUBTOTAL(109,Цветя[Очаквани])","v":0},{"$f":"SUBTOTAL(109,Цветя[Действителни])","v":0}]
[]
[null,"МУЗИКА"]
[null,"Елемент ","Очаквани","Действителни"]
[null,"Музиканти за церемонията"]
[null,"Музикалната група/диджей за тържеството в ресторанта"]
[null,"Други:"]
[null,"Общо за музика",{"$f":"SUBTOTAL(109,Музика[Очаквани])","v":0},{"$f":"SUBTOTAL(109,Музика[Действителни])","v":0}]
[]
[null,"СНИМКИ"]
[null,"Елемент ","Очаквани","Действителни"]
[null,"Официално облекло"]
[null,"Неофициално облекло"]
[null,"Допълнителни копия"]
[null,"Фотоалбуми"]
[null,"Други:"]
[null,"Общо за снимки",{"$f":"SUBTOTAL(109,Снимки[Очаквани])","v":0},{"$f":"SUBTOTAL(109,Снимки[Действителни])","v":0}]
[]
[null,"ТЪРЖЕСТВО В РЕСТОРАНТА "]
[null,"Елемент ","Очаквани","Действителни"]
[null,"Наем за залата/ресторанта"]
[null,"Маси и столове"]
[null,"Храна"]
[null,"Покривки"]
[null,"Други:"]
[null,"Тържество в ресторанта (без музиката и украсата)",{"$f":"SUBTOTAL(109,Тържество_в_ресторанта[Очаквани])","v":0},{"$f":"SUBTOTAL(109,Тържество_в_ресторанта[Действителни])","v":0}]
[]
[null,"КАНЦЕЛАРСКИ И ПЕЧАТНИ МАТЕРИАЛИ"]
[null,"Елемент ","Очаквани","Действителни"]
[null,"Покани"]
[null,"Обявления"]
[null,"Благодарствени картички"]
[null,"Персонализирани канцеларски материали "]
[null,"Други:"]
[null,"Общо за канцеларски и печатни материали",{"$f":"SUBTOTAL(109,БланкаИпечатане[Очаквани])","v":0},{"$f":"SUBTOTAL(109,БланкаИпечатане[Действителни])","v":0}]
[]
[null,"ТРАНСПОРТ"]
[null,"Елемент ","Очаквани","Действителни"]
[null,"Лимузини/колички"]
[null,"Паркинг"]
[null,"Таксита"]
[null,"Други:"]
[null,"Общо за транспорт",{"$f":"SUBTOTAL(109,Транспорт[Очаквани])","v":0},{"$f":"SUBTOTAL(109,Транспорт[Действителни])","v":0}]
[]
[null,"ДРУГИ РАЗХОДИ"]
[null,"Елемент ","Очаквани","Действително"]
[null,"Свещеник"]
[null,"Такса за църквата/мястото на церемонията"]
[null,"Сватбен координатор"]
[null,"Репетиция за вечерята"]
[null,"Други:"]
[null,"Общо други разходи",{"$f":"SUBTOTAL(109,ДругиРазходи[Очаквани])","v":0},{"$f":"SUBTOTAL(109,ДругиРазходи[Действително])","v":0}]